[Event "SixDays Budapest IM-A 10-2024"]
[Site "Budapest"]
[Date "2024.10.01"]
[Round "3.4"]
[White "Zia, Tahsin Tajwar"]
[Black "Krishna C R G"]
[Result "0-1"]
[ECO "A05"]
[WhiteElo "2255"]
[BlackElo "2425"]
[Annotator "TA"]
[PlyCount "92"]
[EventDate "2024.09.24"]
[EventType "tourn"]
[EventCountry "HUN"]
[SourceTitle "playchess.com"]
[Source "ChessBase"]
[SourceQuality "1"]
[TimeControl "5400+30"]

{[%evp 22,92,48,39,50,41,63,33,69,63,125,116,110,97,91,73,103,88,103,70,112,72,97,89,85,80,92,35,37,33,37,0,0,-81,-89,-81,-81,-83,-71,-79,-95,-96,-97,-170,-185,-244,-206,-284,-295,-329,-302,-340,-336,-355,-370,-368,-333,-359,-357,-425,-406,-425,-422,-449,-458,-460,-455,-468,-464,-732,-723,-652,-643]} 1. Nf3 {[%emt 0:00:44]} Nf6 {[%emt 0:03:03]} 2. c4 {[%emt 0:00:22]} d6 {[%emt 0:00:20]} 3. d4 {[%emt 0:00:05]} Nbd7 {[%emt 0:02:19]} 4. Nc3 {[%emt 0:00:15]} e5 {[%emt 0:00:02]} 5. g3 {[%emt 0:00:13]} c6 {[%emt 0:00:12]} 6. e4 {[%emt 0:00:09]} Be7 {[%emt 0:00:06]} 7. Bg2 {[%emt 0:00:02]} O-O {[%emt 0:00:08]} 8. O-O {[%emt 0:00:08]} a6 {[%emt 0:00:13]} 9. a4 {[%emt 0:00:05]} a5 {[%emt 0:02:23]} 10. h3 {[%emt 0:01:25]} Re8 {[%emt 0:02:11]} 11. Be3 {[%emt 0:02:26]} Qc7 {[%emt 0:00:38]} 12. Qc2 {[%emt 0:01:15]} Nf8 {[%emt 0:01:07]} 13. Rad1 {[%emt 0:03:26]} Ng6 {[%emt 0:01:51]} 14. Nd2 {[%emt 0:06:50][%cal Bf3d2,Bd2b3,Bb3c1,Bc1d3][%mdl 32]} Bf8 {[%emt 0:06:39] White is slightly better.} 15. d5 {[%emt 0:06:43]} c5 {[%emt 0:03:04]} ({Better is} 15... h5 $14) 16. Rde1 {[%emt 0:03:03]} Bd7 {[%emt 0:17:58]} 17. Kh2 {[%emt 0:04:19]} Qd8 {[%emt 0:03:40]} 18. Qd1 {[%emt 0:03:14]} Qc8 {[%emt 0:04:42]} 19. Nb3 {[%emt 0:17:53]} Be7 {[%emt 0:04:25][%cal Bf8e7,Be7f6,Bf6d4][%mdl 32]} 20. Nc1 {[%emt 0:01:05]} h6 {[%emt 0:00:07]} 21. Nd3 {[%emt 0:01:15]} Nh7 {[%emt 0:01:03]} 22. f4 {[%emt 0:11:53]} exf4 {[%emt 0:00:08]} 23. gxf4 {[%emt 0:00:15]} Bf6 {[%emt 0:06:06]} 24. Nb5 {[%emt 0:00:26]} (24. Bf2 $16) 24... Bxb5 $14 {[%emt 0:03:30]} 25. axb5 {[%emt 0:00:02]} a4 {[%emt 0:00:02]} 26. Bc1 {[%emt 0:02:17]} Bd4 {[%emt 0:01:30]} 27. Qg4 {[%emt 0:04:27] [#]} (27. Re2 $11 {keeps the balance.}) 27... Qxg4 $1 $17 {[%emt 0:10:02] White is now going downhill.} 28. hxg4 {[%emt 0:00:05]} Nf6 {[%emt 0:00:05]} 29. Kg3 {[%emt 0:00:38] [#]} a3 $1 {[%emt 0:00:33] Black has more active pieces.} 30. bxa3 {[%emt 0:01:24]} Ra4 {[%emt 0:00:24]} 31. e5 {[%emt 0:12:32]} dxe5 {[%emt 0:00:06]} 32. f5 {[%emt 0:01:11]} (32. d6 $17 Rxc4 33. fxe5 (33. Bxb7 $2 {too greedy.} Rc3 $19) 33... Nxe5 34. d7 Nfxd7 (34... Nxd3 35. dxe8=Q+ Nxe8 36. Rxe8+ Kh7 37. Be4+ f5 38. Bxf5+ g6 39. Bxd3) 35. Bd5) 32... Nf8 $19 {[%emt 0:02:13] A dynamic duo of knights.} 33. d6 {[%emt 0:00:06]} (33. Nf2 {keeps fighting.}) 33... Rxc4 {[%emt 0:01:29] aiming for ...Rc3.} 34. g5 {[%emt 0:03:21]} hxg5 {[%emt 0:02:35]} 35. Bxg5 {[%emt 0:00:34]} Rc3 $1 {[%emt 0:03:54][%csl LRa3,LRd3]} 36. Bxf6 {[%emt 0:01:14]} Rxd3+ {[%emt 0:00:28]} (36... gxf6 37. Rf3 $19) 37. Rf3 {[%emt 0:00:01]} Rxf3+ {[%emt 0:00:31]} 38. Bxf3 {[%emt 0:00:02]} gxf6 {[%emt 0:00:02]} 39. Bxb7 {[%emt 0:00:05]} Rd8 {[%emt 0:01:46]} 40. a4 {[%emt 0:03:10]} Bc3 {[%emt 0:04:22]} 41. Rc1 {[%emt 0:01:47]} Bb4 {[%emt 0:00:02] Black is clearly winning.} 42. Ra1 {[%emt 0:00:08]} Ba5 {[%emt 0:00:05]} ({Not} 42... Rxd6 43. a5 Rd3+ 44. Kg2 $19) 43. Rc1 {[%emt 0:00:48]} Nd7 {[%emt 0:00:30]} 44. Bc6 {[%emt 0:00:06]} Nb6 {[%emt 0:00:17][%csl LRa4,LRd6] Threatens to win with ...c4.} 45. d7 {[%emt 0:01:12]} (45. Rxc5 $142 Rxd6 (45... Nxa4 $2 46. Rd5 $19) 46. Rc1) 45... c4 {[%emt 0:00:14]} (45... Nxa4 46. Ra1 Nb6 47. Rxa5 $11) 46. Kf3 {[%emt 0:00:17]} Kf8 {[%emt 0:00:10] Weighted Error Value: White=0.36/Black=0.07 (flawless) .  Mistake:       	White=5     	Black=1      Inaccurate:     	White=5     	Black=3      OK:         	White=8     	Black=13     Best:        	---       	Black=8      Strong:       	---       	Black=1      Brilliant:      	---       	Black=1} 0-1

[Event "SixDays Budapest IM-A 10-2024"]
[Site "Budapest"]
[Date "2024.10.01"]
[Round "3.5"]
[White "Li, Xueyi"]
[Black "Chubakov, Sultan"]
[Result "1-0"]
[ECO "D10"]
[WhiteElo "2187"]
[BlackElo "2265"]
[Annotator "RC"]
[PlyCount "119"]
[EventDate "2024.09.24"]
[EventType "tourn"]
[EventCountry "HUN"]
[SourceTitle "playchess.com"]
[Source "ChessBase"]
[SourceQuality "1"]
[TimeControl "5400+30"]

1. d4 {[%emt 0:00:02]} d5 {[%emt 0:00:13]} 2. c4 {[%emt 0:00:08]} c6 {[%emt 0:00:13]} 3. cxd5 {[%emt 0:00:28]} cxd5 {[%emt 0:00:04]} 4. Nc3 {[%emt 0:01:22]} Nf6 {[%emt 0:01:35]} 5. Bf4 {[%emt 0:00:11]} Nc6 {[%emt 0:00:55]} 6. e3 {[%emt 0:00:06]} a6 {[%emt 0:00:24]} 7. Be2 {[%emt 0:00:12]} Bf5 {[%emt 0:12:10]} 8. Nf3 {[%emt 0:00:10]} e6 {[%emt 0:02:39]} 9. Qb3 {[%emt 0:00:08]} Bd6 {[%emt 0:14:09]} 10. Bxd6 {[%emt 0:01:38]} Qxd6 {[%emt 0:00:04]} 11. Qxb7 {[%emt 0:00:34]} O-O {[%emt 0:07:04]} 12. Qb3 {[%emt 0:00:07]} Rab8 {[%emt 0:07:19]} 13. Qa4 {[%emt 0:05:51]} Rxb2 {[%emt 0:03:43]} 14. O-O {[%emt 0:01:47]} a5 {[%emt 0:08:16]} 15. Rfc1 {[%emt 0:09:16]} Rc8 {[%emt 0:03:20]} 16. Qd1 {[%emt 0:05:19]} Rbb8 {[%emt 0:10:18]} 17. Ba6 {[%emt 0:07:28]} Rd8 {[%emt 0:02:07]} 18. Be2 {[%emt 0:02:12]} Rdc8 {[%emt 0:04:29]} 19. Ba6 {[%emt 0:05:42]} Rd8 {[%emt 0:00:05]} 20. Nb5 {[%emt 0:03:27]} Qd7 {[%emt 0:00:40]} 21. Ne5 {[%emt 0:00:57]} Nxe5 {[%emt 0:00:18]} 22. dxe5 {[%emt 0:00:02]} Ne8 {[%emt 0:00:28]} 23. Nd4 {[%emt 0:00:38]} Rb6 {[%emt 0:02:16]} 24. Bf1 {[%emt 0:01:05]} a4 {[%emt 0:02:01]} 25. Rc3 {[%emt 0:06:42]} Rdb8 {[%emt 0:01:48]} 26. Rac1 {[%emt 0:03:12]} Bg6 {[%emt 0:03:41]} 27. h3 {[%emt 0:04:07]} h6 {[%emt 0:01:58]} 28. Nc6 {[%emt 0:00:41]} Ra8 {[%emt 0:00:49]} 29. Qd4 {[%emt 0:00:55]} Rb7 {[%emt 0:01:51]} 30. Ra3 {[%emt 0:03:45]} Rb1 {[%emt 0:02:36]} 31. Qc5 {[%emt 0:05:35]} Rxc1 {[%emt 0:01:32]} 32. Qxc1 {[%emt 0:00:09]} Qb7 {[%emt 0:01:38]} 33. Rc3 {[%emt 0:01:28]} Bb1 {[%emt 0:02:58]} 34. a3 {[%emt 0:02:04]} Ba2 {[%emt 0:00:49]} 35. Nd4 {[%emt 0:00:25]} Qb8 {[%emt 0:01:57]} 36. Nc6 {[%emt 0:02:47]} Qb7 {[%emt 0:00:17]} 37. Rc5 {[%emt 0:01:31]} Qb6 {[%emt 0:00:56]} 38. Rb5 {[%emt 0:02:02]} Qc7 {[%emt 0:00:24]} 39. Qc5 g6 {[%emt 0:01:11]} 40. Ne7+ {[%emt 0:08:01]} Kg7 {[%emt 0:00:08]} 41. Qxc7 {[%emt 0:00:35]} Nxc7 {[%emt 0:00:01]} 42. Rb7 {[%emt 0:00:06]} Ne8 {[%emt 0:00:57]} 43. Nc6 {[%emt 0:01:37]} Rc8 {[%emt 0:00:41]} 44. Bb5 {[%emt 0:00:49]} Bb3 {[%emt 0:00:48]} 45. Nd4 {[%emt 0:00:49]} Rc7 {[%emt 0:00:26]} 46. Rb8 {[%emt 0:00:13]} Rc1+ {[%emt 0:00:05]} 47. Kh2 {[%emt 0:00:16]} Nc7 {[%emt 0:00:10]} 48. Rb7 {[%emt 0:03:23]} Nxb5 {[%emt 0:01:08]} 49. Nxb5 {[%emt 0:00:06]} Ra1 {[%emt 0:00:37]} 50. Nd6 {[%emt 0:00:23]} Rxa3 {[%emt 0:00:11]} 51. Ne8+ {[%emt 0:01:16]} Kf8 {[%emt 0:00:58]} 52. Nf6 {[%emt 0:00:46]} h5 {[%emt 0:00:09]} 53. g4 {[%emt 0:00:47]} hxg4 {[%emt 0:00:19]} 54. hxg4 {[%emt 0:00:08]} g5 {[%emt 0:00:20]} 55. Rb8+ {[%emt 0:00:17]} Kg7 {[%emt 0:00:05]} 56. Rg8+ {[%emt 0:00:07]} Kh6 {[%emt 0:00:09]} 57. f4 {[%emt 0:00:07]} Ra2+ {[%emt 0:00:12]} 58. Kg3 {[%emt 0:00:11]} gxf4+ {[%emt 0:00:16]} 59. exf4 {[%emt 0:00:13]} a3 {[%emt 0:00:11]} 60. g5# 1-0

[Event "SixDays Budapest IM-A 10-2024"]
[Site "Budapest"]
[Date "2024.10.02"]
[Round "4.1"]
[White "Kustar, Sandor"]
[Black "Valkova, Angelika"]
[Result "1/2-1/2"]
[ECO "D37"]
[WhiteElo "2252"]
[BlackElo "2068"]
[Annotator "TA"]
[PlyCount "51"]
[EventDate "2024.09.24"]
[EventType "tourn"]
[EventCountry "HUN"]
[SourceTitle "playchess.com"]
[Source "ChessBase"]
[SourceQuality "1"]
[TimeControl "5400+30"]

{[%evp 9,51,20,26,20,30,32,33,29,29,32,36,27,29,33,33,26,30,20,34,8,16,11,8,20,16,6,69,70,76,53,138,42,123,120,164,145,163,0,0,3,16,20,24,0]} 1. c4 {[%emt 0:00:03]} e6 {[%emt 0:01:38]} 2. Nf3 {[%emt 0:02:08]} d5 {[%emt 0:00:05]} 3. d4 {[%emt 0:00:12]} Nf6 {[%emt 0:00:08]} 4. Nc3 {[%emt 0:01:01]} a6 {[%emt 0:00:19]} 5. cxd5 {[%emt 0:01:27]} exd5 {[%emt 0:00:05]} 6. Bg5 {[%emt 0:00:51]} Be6 {[%emt 0:00:07]} 7. e3 {[%emt 0:02:10]} Nbd7 {[%emt 0:00:30]} 8. Bd3 {[%emt 0:04:26] White is slightly better.} Bd6 {[%emt 0:00:30]} 9. O-O {[%emt 0:03:56]} c6 {[%emt 0:00:16]} 10. Bf4 {[%emt 0:11:22]} Qc7 {[%emt 0:00:17]} 11. Bxd6 {[%emt 0:01:33]} Qxd6 {[%emt 0:00:06]} 12. Qc2 {[%emt 0:01:59]} O-O {[%emt 0:02:29]} 13. Rae1 {[%emt 0:00:09]} Rfe8 {[%emt 0:08:39]} 14. Nd2 {[%emt 0:00:56]} Ng4 {[%emt 0:09:07][%csl Gg4][%cal Rd6h2]} 15. f4 {[%emt 0:05:09][%cal Oh2h3] aiming for h3!} g6 {[%emt 0:06:12]} 16. h3 {[%emt 0:14:32]} Nh6 {[%emt 0:00:33]} 17. g4 {[%emt 0:05:22]} Nf8 {[%emt 0:03:49]} (17... c5 $11) 18. Nf3 $14 {[%emt 0:00:59]} Kh8 {[%emt 0:02:00]} 19. Qd2 {[%emt 0:05:52] White is more active.} Rad8 {[%emt 0:07:52] [#]} (19... Qe7 $14) 20. Bb1 {[%emt 0:02:03]} ({White should try} 20. e4 $1 $16 {[%cal Re4e5] Black must now prevent e5.} f5 21. e5) 20... Bc8 {[%emt 0:01:52]} (20... Nd7 $14) 21. e4 $16 {[%emt 0:04:52]} dxe4 {[%emt 0:01:52]} 22. Nxe4 {[%emt 0:00:08]} Qc7 {[%emt 0:00:45] [#]} 23. Nc3 $2 {[%emt 0:11:37]} ({White should play} 23. f5 $1 $18 Ng8 24. Nfg5) 23... Rxe1 $11 {[%emt 0:07:17]} 24. Rxe1 {[%emt 0:00:16]} Ne6 {[%emt 0:01:04]} 25. Ne2 $1 {[%emt 0:01:35] f5 is the strong threat.} Ng8 {[%emt 0:02:57]} 26. Qe3 {[%emt 0:00:43] Weighted Error Value: White=0.24 (precise) /Black=0.18 (very precise) .  Mistake:       	White=2     	Black=3      Inaccurate:     	White=1     	Black=1      OK:         	White=7     	Black=6      Best:        	White=1     	---        Strong:       	White=1     	---} 1/2-1/2

[Event "SixDays Budapest IM-A 10-2024"]
[Site "Budapest"]
[Date "2024.10.02"]
[Round "4.2"]
[White "Pavan Karthikeya Varma Gunturi"]
[Black "Chubakov, Sultan"]
[Result "0-1"]
[ECO "B42"]
[WhiteElo "2056"]
[BlackElo "2265"]
[Annotator "TA"]
[PlyCount "124"]
[EventDate "2024.09.24"]
[EventType "tourn"]
[EventCountry "HUN"]
[SourceTitle "playchess.com"]
[Source "ChessBase"]
[SourceQuality "1"]
[TimeControl "5400+30"]

{[%evp 19,124,-6,0,-2,33,0,0,-29,-29,-3,-17,-25,-2,-3,-12,-48,-43,-49,-45,-50,-47,-43,-43,-41,-12,-30,-32,-31,-29,-28,-28,-37,-21,-29,-26,-20,-22,-110,-116,-108,-98,-187,-174,-185,-186,-224,-211,-210,-218,-249,-248,-310,-317,-281,-141,-316,-322,-401,-198,-434,-382,-385,-349,-742,-617,-610,-602,-514,-504,-6295,-6364,-6399,-6187,-5870,-5488,-6207,-4513,-29976,-29975,-29977,-29975,-29982,-29983,-29984,-29981,-29980,-29978,-29985,-29982,-29983,-29984,-29986,-29985,-29987,-29987,-29987,-29983,-29987,-29988,-29988,-29989,-29988,-29988,-29991,-29992,-29992,-29991]} 1. e4 {[%emt 0:00:06]} c5 {[%emt 0:00:06]} 2. Nf3 {[%emt 0:00:13]} e6 {[%emt 0:00:05]} 3. d4 {[%emt 0:00:10]} cxd4 {[%emt 0:00:04]} 4. Nxd4 {[%emt 0:00:08]} a6 {[%emt 0:00:03]} 5. Bd3 {[%emt 0:00:42]} Bc5 {[%emt 0:00:41]} 6. Nb3 {[%emt 0:04:06]} Ba7 {[%emt 0:00:20]} 7. Nc3 {[%emt 0:02:39]} Nc6 {[%emt 0:04:14]} 8. O-O {[%emt 0:03:20]} Nge7 {[%emt 0:01:54]} 9. Bf4 {[%emt 0:03:13] B42: Sicilian: Kan Variation: 5 Bd3.} d6 {[%emt 0:12:06]} 10. Bg3 {[%emt 0:04:05]} O-O {[%emt 0:09:47]} 11. Kh1 $146 {[%emt 0:00:47]} ({Predecessor:} 11. Re1 b5 12. a3 e5 13. Nd5 Nxd5 14. exd5 Nd4 {½-½ Hushpit,L (2081)-Yalcinkaya,E (2026) EU-ch Schools U15 2024 (9)}) 11... b5 {[%emt 0:05:09]} 12. a3 {[%emt 0:05:40]} Ne5 {[%emt 0:07:52]} 13. f4 {[%emt 0:09:30]} Nc4 $1 {[%emt 0:02:07]} 14. Bxc4 {[%emt 0:03:00]} bxc4 {[%emt 0:00:04]} 15. Nd4 {[%emt 0:03:18]} e5 {[%emt 0:11:30]} 16. Nf3 {[%emt 0:03:11]} (16. fxe5 dxe5 17. Nde2 (17. Bxe5 $2 f6 $19) 17... Qc7 $15) 16... f6 {[%emt 0:06:10]} 17. Qe2 {[%emt 0:08:13]} Qc7 {[%emt 0:02:25]} 18. Rad1 {[%emt 0:02:20]} Be6 {[%emt 0:03:18]} 19. Rd2 {[%emt 0:02:23]} Rab8 {[%emt 0:01:56]} 20. Rfd1 {[%emt 0:02:33]} Rfd8 {[%emt 0:02:24]} (20... Rxb2 21. Rxd6 exf4 22. Rxe6 $18) 21. h3 {[%emt 0:03:32]} Bf7 {[%emt 0:01:43]} (21... Rxb2 $2 22. fxe5 Qa5 (22... fxe5 $2 23. Ng5 $18) 23. exf6 (23. Rxd6 Rxd6 24. exd6 Nc6 $18) (23. exd6 Ng6 $18) 23... gxf6 24. Nd5 (24. Rxd6 Rxd6 25. Rxd6 Qxc3 $14) (24. Bxd6 Qxc3 25. Bxe7 Rxd2 $16) 24... Nxd5 25. exd5 $18) 22. fxe5 {[%emt 0:02:32]} dxe5 {[%emt 0:00:14]} 23. Rxd8+ {[%emt 0:00:59]} Rxd8 {[%emt 0:00:05]} 24. Rxd8+ {[%emt 0:00:04]} Qxd8 {[%emt 0:00:02]} 25. Bf2 {[%emt 0:00:22]} Bxf2 {[%emt 0:08:05]} 26. Qxf2 {[%emt 0:00:05]} Qc7 {[%emt 0:00:19]} 27. Na4 {[%emt 0:04:08]} Qc6 {[%emt 0:04:04]} 28. Qc5 {[%emt 0:03:02]} (28. Nc5 $11) 28... Qxa4 $17 {[%emt 0:01:49]} 29. Qxe7 {[%emt 0:00:53]} h6 {[%emt 0:00:19]} (29... Qxc2 30. Qd8+) 30. Qd8+ {[%emt 0:08:02]} (30. Nh4 $17) 30... Kh7 $19 {[%emt 0:00:11]} 31. Qd2 {[%emt 0:00:59]} Bg6 {[%emt 0:01:52]} 32. Qc3 {[%emt 0:02:46]} Bxe4 {[%emt 0:00:47]} 33. Ne1 {[%emt 0:00:16]} Qb5 {[%emt 0:02:37]} 34. Nf3 {[%emt 0:01:46]} Qd5 {[%emt 0:01:39]} 35. Kh2 {[%emt 0:00:36]} Bxf3 {[%emt 0:02:09]} 36. gxf3 {[%emt 0:00:08]} Kg6 {[%emt 0:01:12]} (36... Qd4 $19 {Hoping for ...Qxc3.} 37. Qe1 f5 (37... Qxb2 38. Qe4+ Kh8 39. Qa8+ Kh7 40. Qe4+ g6 41. Qxc4 $11)) 37. Qe3 $2 {[%emt 0:00:45]} (37. b3 $17 {might work better.}) 37... Kf5 $19 {[%emt 0:02:35]} (37... Qd4 38. Qe2 $19) 38. Kg3 {[%emt 0:00:13]} g5 {[%emt 0:02:10]} (38... Qd4 $142 39. Qe1 g5 (39... Qxb2 40. Qe4+ Ke6 41. Qxc4+ Ke7 42. Qc7+ Kf8 43. Qd6+ Kf7 44. Qxa6 $11)) 39. c3 $2 {[%emt 0:02:25]} (39. Qa7) 39... e4 {[%emt 0:01:29]} 40. fxe4+ {[%emt 0:00:32]} Qxe4 {[%emt 0:00:07]} 41. Qb6 $2 {[%emt 0:00:36]} (41. Qa7 Qf4+ 42. Kg2) 41... Qe5+ {[%emt 0:01:23]} 42. Kf3 {[%emt 0:01:09]} Qd5+ {[%emt 0:00:38]} 43. Kf2 {[%emt 0:01:20]} Qb5 {[%emt 0:00:39]} 44. Qa7 {[%emt 0:00:41]} (44. Qd4 $142 Qxb2+ 45. Kf3 Qb7+ (45... Qxa3 46. Qe4#) 46. Ke3) 44... Qxb2+ $19 {[%emt 0:00:06]} 45. Kg1 {[%emt 0:00:06]} Qc1+ {[%emt 0:00:18]} 46. Kg2 {[%emt 0:00:07]} Qd2+ {[%emt 0:00:08]} 47. Kg1 {[%emt 0:00:14]} Qxc3 {[%emt 0:02:03]} 48. Qd7+ {[%emt 0:00:19]} Ke4 {[%emt 0:00:34]} 49. Qg4+ {[%emt 0:00:14]} Kd3 {[%emt 0:00:17]} 50. Qd1+ {[%emt 0:00:19]} Ke3 {[%emt 0:00:53]} 51. Kh1 {[%emt 0:00:36]} Qd2 {[%emt 0:00:46]} 52. Qg1+ {[%emt 0:00:06]} Kd3 {[%emt 0:00:14]} 53. Qg3+ {[%emt 0:00:05]} Kc2 {[%emt 0:00:11]} 54. Qc7 {[%emt 0:00:12]} c3 {[%emt 0:00:31]} 55. Qh7+ {[%emt 0:00:11]} Kc1 {[%emt 0:00:18]} 56. Qxh6 {[%emt 0:00:26]} Qe1+ {[%emt 0:00:54]} 57. Kg2 {[%emt 0:00:08]} Qe2+ {[%emt 0:00:11]} 58. Kg1 {[%emt 0:00:03]} Qe3+ {[%emt 0:01:32]} 59. Kg2 {[%emt 0:00:16]} c2 {[%emt 0:00:36]} 60. Qxf6 {[%emt 0:00:04]} Kd1 {[%emt 0:00:22]} 61. Qf1+ {[%emt 0:00:32]} Kd2 {[%emt 0:00:27]} 62. Qxa6 {[%emt 0:00:20]} Qe2+ {[%emt 0:00:04]} ({Less strong is} 62... c1=B 63. Qc4 $17) 0-1

[Event "SixDays Budapest IM-A 10-2024"]
[Site "Budapest"]
[Date "2024.10.02"]
[Round "4.3"]
[White "Krishna C R G"]
[Black "Li, Xueyi"]
[Result "1-0"]
[ECO "D30"]
[WhiteElo "2425"]
[BlackElo "2187"]
[Annotator "TA"]
[PlyCount "45"]
[EventDate "2024.09.24"]
[EventType "tourn"]
[EventCountry "HUN"]
[SourceTitle "playchess.com"]
[Source "ChessBase"]
[SourceQuality "1"]
[TimeControl "5400+30"]

{[%evp 12,45,29,21,29,24,35,26,28,12,14,0,52,47,50,50,62,24,91,100,98,94,212,216,302,304,310,298,266,183,1198,1180,1256,1233,1904,1590]} 1. d4 {[%emt 0:02:30]} d5 {[%emt 0:00:12]} 2. c4 {[%emt 0:00:03]} c6 {[%emt 0:00:05]} 3. Nf3 {[%emt 0:00:06]} Nf6 {[%emt 0:00:04]} 4. e3 {[%emt 0:00:05]} e6 {[%emt 0:00:19]} 5. Nbd2 {[%emt 0:00:03]} Nbd7 {[%emt 0:00:11]} 6. b3 {[%emt 0:00:06]} Bd6 {[%emt 0:01:04]} 7. Bb2 {[%emt 0:00:03]} Ne4 {[%emt 0:01:25]} 8. Be2 {[%emt 0:01:25]} f5 {[%emt 0:01:31]} 9. O-O {[%emt 0:00:04]} Qf6 {[%emt 0:00:50] White has an edge.} 10. Ne1 {[%emt 0:00:03]} O-O {[%emt 0:15:08]} 11. Ndf3 {[%emt 0:01:21]} g5 {[%emt 0:17:24]} (11... b6 $11) 12. Nd3 $14 {[%emt 0:00:10]} g4 {[%emt 0:00:05]} 13. Nfe5 {[%emt 0:00:26]} Qh6 {[%emt 0:01:50]} 14. Qc1 {[%emt 0:02:36]} Ndf6 {[%emt 0:05:22]} (14... dxc4 $11 15. bxc4 (15. Qxc4 Nd2 $11) 15... c5) 15. Ba3 $16 {[%emt 0:13:30]} Bxa3 {[%emt 0:09:08]} 16. Qxa3 {[%emt 0:00:02]} g3 {[%emt 0:04:50]} 17. hxg3 $18 {[%emt 0:02:08] Active counter play!} (17. fxg3 $2 Qxe3+ 18. Kh1 Qxe2 $19) 17... Nxg3 {[%emt 0:00:04]} 18. fxg3 {[%emt 0:00:08]} Qxe3+ {[%emt 0:00:04]} 19. Rf2 {[%emt 0:00:17]} Ne4 {[%emt 0:00:05]} 20. Re1 {[%emt 0:13:33] Bf3 would now be deadly.} dxc4 $2 {[%emt 0:13:02]} (20... Nxf2 21. Bf3 (21. Nxf2 Qxd4 22. Bf3 a5 $18) 21... Qxd4 (21... Nxd3+ $2 {perishes.} 22. Rxe3 Nxe5 23. Rxe5 $18) (21... Qd2 $2 22. Re2 $18) 22. Nxf2 Qd2) 21. Bh5 {[%emt 0:06:52] White is clearly winning.} Qg5 {[%emt 0:04:26] [#]} 22. Rxe4 $1 {[%emt 0:00:30][%cal Oe4g4][%mdl 512] White threatens Rg4! and mate.} Rd8 {[%emt 0:03:37]} (22... c5 23. Nxc5) 23. Nf7 {[%emt 0:01:12] Weighted Error Value: White=0.22 (precise) /Black=0.39.  Mistake:       	---       	Black=4      Inaccurate:     	White=2     	Black=1      OK:         	White=3     	Black=5      Best:        	White=3     	---} 1-0

[Event "SixDays Budapest IM-A 10-2024"]
[Site "Budapest"]
[Date "2024.10.02"]
[Round "4.4"]
[White "Pribelszky, Bence Daniel"]
[Black "Zia, Tahsin Tajwar"]
[Result "1/2-1/2"]
[ECO "A05"]
[WhiteElo "2408"]
[BlackElo "2255"]
[Annotator "RC"]
[PlyCount "89"]
[EventDate "2024.09.24"]
[EventType "tourn"]
[EventCountry "HUN"]
[SourceTitle "playchess.com"]
[Source "ChessBase"]
[SourceQuality "1"]
[TimeControl "5400+30"]

1. Nf3 {[%emt 0:09:41]} Nf6 {[%emt 0:02:07]} 2. g3 {[%emt 0:00:47]} c5 {[%emt 0:00:19]} 3. c4 {[%emt 0:01:40]} Nc6 {[%emt 0:00:09]} 4. Bg2 {[%emt 0:00:34]} d5 {[%emt 0:00:43]} 5. cxd5 {[%emt 0:00:17]} Nxd5 {[%emt 0:00:02]} 6. Nc3 {[%emt 0:00:22]} Nc7 {[%emt 0:00:24]} 7. O-O {[%emt 0:01:50]} e5 {[%emt 0:00:20]} 8. d3 {[%emt 0:02:11]} Be7 {[%emt 0:01:05]} 9. Be3 {[%emt 0:01:33]} O-O {[%emt 0:03:08]} 10. Rc1 {[%emt 0:00:11]} Bd7 {[%emt 0:00:45]} 11. a3 {[%emt 0:09:34]} Rc8 {[%emt 0:02:13]} 12. Nd2 {[%emt 0:00:24]} Kh8 {[%emt 0:00:00]} 13. Kh1 {[%emt 0:03:48]} b6 {[%emt 0:14:53]} 14. Nc4 {[%emt 0:05:27]} b5 {[%emt 0:01:54]} 15. Nd2 {[%emt 0:01:52]} Nd4 {[%emt 0:00:06]} 16. Nb3 {[%emt 0:21:25]} Be6 {[%emt 0:06:40]} 17. Bxd4 {[%emt 0:00:19]} cxd4 {[%emt 0:03:54]} 18. Ne4 {[%emt 0:00:19]} Bd5 {[%emt 0:03:24]} 19. Na5 {[%emt 0:02:36]} Ne6 {[%emt 0:06:04]} 20. Rxc8 {[%emt 0:01:15]} Qxc8 {[%emt 0:00:08]} 21. Nd2 {[%emt 0:02:55]} Bxg2+ {[%emt 0:08:28]} 22. Kxg2 {[%emt 0:00:03]} Ng5 {[%emt 0:00:06]} 23. Nf3 {[%emt 0:07:02]} Nxf3 {[%emt 0:13:26]} 24. exf3 {[%emt 0:00:36]} Qc7 {[%emt 0:00:38]} 25. Nb3 {[%emt 0:00:53]} Qd7 {[%emt 0:17:27]} 26. Qc2 {[%emt 0:10:08]} Rc8 {[%emt 0:00:13]} 27. Qd2 {[%emt 0:05:13]} h6 {[%emt 0:00:55]} 28. Rc1 {[%emt 0:00:12]} Bg5 {[%emt 0:01:16]} 29. Rxc8+ {[%emt 0:00:06]} Qxc8 {[%emt 0:00:01]} 30. Qe2 {[%emt 0:00:48]} Bf6 {[%emt 0:01:47]} 31. h4 {[%emt 0:00:48]} Qc7 {[%emt 0:02:03]} 32. Qd2 {[%emt 0:01:09]} a6 {[%emt 0:00:36]} 33. Qc1 {[%emt 0:05:11]} Qxc1 {[%emt 0:03:26]} 34. Nxc1 {[%emt 0:00:02]} Kh7 {[%emt 0:01:42]} 35. Nb3 {[%emt 0:04:32]} Kg6 {[%emt 0:02:06]} 36. Nc5 {[%emt 0:01:52]} Be7 {[%emt 0:00:15]} 37. Nxa6 {[%emt 0:00:26]} Bd6 {[%emt 0:00:01]} 38. Kf1 {[%emt 0:00:50]} Kf5 {[%emt 0:00:24]} 39. Ke2 {[%emt 0:00:17]} Ke6 {[%emt 0:01:14]} 40. Kd2 {[%emt 0:00:37]} Kd5 {[%emt 0:00:19]} 41. Kc2 {[%emt 0:00:40]} f5 {[%emt 0:00:11]} 42. h5 {[%emt 0:00:29]} Kc6 {[%emt 0:02:58]} 43. Kb3 {[%emt 0:00:20]} Kd5 {[%emt 0:00:04]} 44. Kc2 {[%emt 0:00:33]} Kc6 {[%emt 0:00:33]} 45. Kb3 {[%emt 0:00:40]} 1/2-1/2